[Event "Titled Tuesday Blitz June 21 Early 2022"]
[White "Araujo Sanchez, Josue"]
[Black "Deviprasath, Sharvesh"]
[WhiteFideId "6416896"]
[BlackFideId "30938228"]
[WhiteElo "2339"]
[BlackElo "2102"]
[Result "1-0"]
[Round "06"]
[TimeControl "180+1"]
[Date "2022.06.21"]
[WhiteClock "0:00:11"]
[BlackClock "0:00:02"]

1. d4 {[%clk 0:03:00]}  Nf6 {[%clk 0:02:57]} 2. Bf4 {[%clk 0:03:01]}  g6 {[%clk 0:02:56]} 3. e3 {[%clk 0:03:01]}  Bg7 {[%clk 0:02:56]} 4. Nf3 {[%clk 0:03:01]}  O-O {[%clk 0:02:54]} 5. h3 {[%clk 0:03:02]}  d6 {[%clk 0:02:54]} 6. Bh2 {[%clk 0:03:03]}  Nc6 {[%clk 0:02:54]} 7. Be2 {[%clk 0:03:03]}  e5 {[%clk 0:02:50]} 8. O-O {[%clk 0:03:04]}  Nd7 {[%clk 0:02:49]} 9. c4 {[%clk 0:03:02]}  f5 {[%clk 0:02:42]} 10. Nc3 {[%clk 0:03:01]}  g5 {[%clk 0:02:42]} 11. dxe5 {[%clk 0:02:58]}  dxe5 {[%clk 0:02:40]} 12. Qd5+ {[%clk 0:02:53]}  Kh8 {[%clk 0:02:38]} 13. Rad1 {[%clk 0:02:54]}  e4 {[%clk 0:02:09]} 14. Nd4 {[%clk 0:02:43]}  Nxd4 {[%clk 0:02:02]} 15. exd4 {[%clk 0:02:44]}  c6 {[%clk 0:02:02]} 16. Qd6 {[%clk 0:02:44]}  f4 {[%clk 0:02:01]} 17. Nxe4 {[%clk 0:02:42]}  Re8 {[%clk 0:01:56]} 18. Bf3 {[%clk 0:02:41]}  Bf8 {[%clk 0:01:53]} 19. Rfe1 {[%clk 0:02:17]}  Bxd6 {[%clk 0:01:38]} 20. Nxd6 {[%clk 0:02:18]}  Rxe1+ {[%clk 0:01:35]} 21. Rxe1 {[%clk 0:02:19]}  Qa5 {[%clk 0:01:32]} 22. Re8+ {[%clk 0:02:18]}  Kg7 {[%clk 0:01:29]} 23. h4 {[%clk 0:02:13]}  Nf6 {[%clk 0:01:20]} 24. Re7+ {[%clk 0:02:10]}  Kg6 {[%clk 0:01:15]} 25. hxg5 {[%clk 0:02:06]}  Qd2 {[%clk 0:01:12]} 26. Kh1 {[%clk 0:01:40]}  Kxg5 {[%clk 0:00:55]} 27. Nf7+ {[%clk 0:01:37]}  Kf5 {[%clk 0:00:51]} 28. Nd6+ {[%clk 0:01:19]}  Kg6 {[%clk 0:00:36]} 29. Nf7 {[%clk 0:00:55]}  Qxd4 {[%clk 0:00:22]} 30. Ne5+ {[%clk 0:00:52]}  Kf5 {[%clk 0:00:18]} 31. g4+ {[%clk 0:00:44]}  fxg3 {[%clk 0:00:17]} 32. fxg3 {[%clk 0:00:45]}  Qxe5 {[%clk 0:00:13]} 33. g4+ {[%clk 0:00:43]}  Nxg4 {[%clk 0:00:14]} 34. Bxg4+ {[%clk 0:00:40]}  Kf6 {[%clk 0:00:15]} 35. Rxe5 {[%clk 0:00:24]}  Bxg4 {[%clk 0:00:13]} 36. Kg1 {[%clk 0:00:21]}  Rd8 {[%clk 0:00:12]} 37. Bf4 {[%clk 0:00:20]}  Rd4 {[%clk 0:00:11]} 38. Bg3 {[%clk 0:00:19]}  Rxc4 {[%clk 0:00:12]} 39. Re3 {[%clk 0:00:17]}  h5 {[%clk 0:00:11]} 40. a3 {[%clk 0:00:15]}  Kg5 {[%clk 0:00:09]} 41. Re5+ {[%clk 0:00:15]}  Bf5 {[%clk 0:00:09]} 42. Re3 {[%clk 0:00:15]}  h4 {[%clk 0:00:08]} 43. Be5 {[%clk 0:00:13]}  Rc2 {[%clk 0:00:08]} 44. Rf3 {[%clk 0:00:11]}  Kg4 {[%clk 0:00:08]} 45. Rf4+ {[%clk 0:00:10]}  Kg5 {[%clk 0:00:06]} 46. Rf2 {[%clk 0:00:10]}  Rc1+ {[%clk 0:00:04]} 47. Kh2 {[%clk 0:00:11]}  Re1 {[%clk 0:00:03]} 48. Bf4+ {[%clk 0:00:10]}  Kg4 {[%clk 0:00:02]} 49. Bd2 {[%clk 0:00:11]} 1-0


[Site "https://www.chess.com"]

[Event "Titled Tuesday Blitz June 21 Early 2022"]
[White "Baches Garcia, Guillermo"]
[Black "Prokofiev, Valentyn"]
[WhiteFideId "2209764"]
[BlackFideId "14160161"]
[WhiteElo "2465"]
[BlackElo "2142"]
[Result "0-1"]
[Round "06"]
[TimeControl "180+1"]
[Date "2022.06.21"]
[WhiteClock "0:00:03"]
[BlackClock "0:00:24"]

1. e4 {[%clk 0:02:57]}  e5 {[%clk 0:02:59]} 2. Nf3 {[%clk 0:02:56]}  Nc6 {[%clk 0:03:00]} 3. Bc4 {[%clk 0:02:56]}  Bc5 {[%clk 0:02:59]} 4. c3 {[%clk 0:02:56]}  Nf6 {[%clk 0:02:59]} 5. d4 {[%clk 0:02:55]}  exd4 {[%clk 0:03:00]} 6. cxd4 {[%clk 0:02:55]}  Bb4+ {[%clk 0:03:00]} 7. Bd2 {[%clk 0:02:54]}  Bxd2+ {[%clk 0:02:57]} 8. Nbxd2 {[%clk 0:02:55]}  d5 {[%clk 0:02:57]} 9. exd5 {[%clk 0:02:55]}  Nxd5 {[%clk 0:02:58]} 10. Qb3 {[%clk 0:02:56]}  Nce7 {[%clk 0:02:56]} 11. O-O {[%clk 0:02:55]}  O-O {[%clk 0:02:56]} 12. Ne4 {[%clk 0:02:55]}  Nb6 {[%clk 0:02:52]} 13. Bd3 {[%clk 0:02:51]}  Bg4 {[%clk 0:02:51]} 14. Ne5 {[%clk 0:02:43]}  Be6 {[%clk 0:02:51]} 15. Qc3 {[%clk 0:02:32]}  Nbd5 {[%clk 0:02:43]} 16. Qd2 {[%clk 0:02:27]}  Bf5 {[%clk 0:02:18]} 17. Rad1 {[%clk 0:02:12]}  c6 {[%clk 0:02:17]} 18. Rfe1 {[%clk 0:02:05]}  Ng6 {[%clk 0:02:06]} 19. Nc5 {[%clk 0:01:50]}  Bxd3 {[%clk 0:02:05]} 20. Qxd3 {[%clk 0:01:42]}  Ngf4 {[%clk 0:01:58]} 21. Qg3 {[%clk 0:01:28]}  Qc7 {[%clk 0:01:38]} 22. Re4 {[%clk 0:01:09]}  Ng6 {[%clk 0:01:13]} 23. h4 {[%clk 0:00:45]}  Nxe5 {[%clk 0:00:58]} 24. dxe5 {[%clk 0:00:42]}  b6 {[%clk 0:00:53]} 25. Nd3 {[%clk 0:00:25]}  Ne7 {[%clk 0:00:53]} 26. Qg5 {[%clk 0:00:17]}  h6 {[%clk 0:00:52]} 27. Qe3 {[%clk 0:00:12]}  c5 {[%clk 0:00:48]} 28. Rg4 {[%clk 0:00:10]}  Kh8 {[%clk 0:00:38]} 29. Nf4 {[%clk 0:00:09]}  Nf5 {[%clk 0:00:38]} 30. Qe4 {[%clk 0:00:09]}  Nd4 {[%clk 0:00:37]} 31. Nh5 {[%clk 0:00:05]}  Rg8 {[%clk 0:00:34]} 32. Rd3 {[%clk 0:00:04]}  Rae8 {[%clk 0:00:28]} 33. Rdg3 {[%clk 0:00:03]}  Rxe5 {[%clk 0:00:24]} 0-1


[Site "https://www.chess.com"]

[Event "Titled Tuesday Blitz June 21 Early 2022"]
[White "Bachmann, Axel"]
[Black "Bortnyk, Olexandr"]
[WhiteFideId "3700488"]
[BlackFideId "14120828"]
[WhiteElo "2587"]
[BlackElo "2723"]
[Result "0-1"]
[Round "06"]
[TimeControl "180+1"]
[Date "2022.06.21"]
[WhiteClock "0:01:34"]
[BlackClock "0:02:27"]

1. c4 {[%clk 0:02:54]}  d6 {[%clk 0:02:58]} 2. Nc3 {[%clk 0:02:50]}  e5 {[%clk 0:02:55]} 3. Nf3 {[%clk 0:02:49]}  f5 {[%clk 0:02:54]} 4. d4 {[%clk 0:02:49]}  e4 {[%clk 0:02:54]} 5. Ng5 {[%clk 0:02:49]}  Be7 {[%clk 0:02:53]} 6. h4 {[%clk 0:02:41]}  Nf6 {[%clk 0:02:53]} 7. g3 {[%clk 0:02:37]}  O-O {[%clk 0:02:52]} 8. Nh3 {[%clk 0:02:34]}  c6 {[%clk 0:02:52]} 9. Bg2 {[%clk 0:02:24]}  Be6 {[%clk 0:02:51]} 10. d5 {[%clk 0:02:15]}  Bf7 {[%clk 0:02:47]} 11. Ng5 {[%clk 0:02:13]}  Nbd7 {[%clk 0:02:45]} 12. Bh3 {[%clk 0:01:46]}  g6 {[%clk 0:02:40]} 13. h5 {[%clk 0:01:46]}  Nxh5 {[%clk 0:02:38]} 14. Bxf5 {[%clk 0:01:44]}  Bxg5 {[%clk 0:02:32]} 15. Bxg5 {[%clk 0:01:41]}  Qxg5 {[%clk 0:02:33]} 16. Bxd7 {[%clk 0:01:41]}  e3 {[%clk 0:02:29]} 17. Ne4 {[%clk 0:01:39]}  exf2+ {[%clk 0:02:29]} 18. Kf1 {[%clk 0:01:38]}  Qe7 {[%clk 0:02:28]} 19. Qd4 {[%clk 0:01:34]}  Qxe4 {[%clk 0:02:27]} 0-1


[Site "https://www.chess.com"]

[Event "Titled Tuesday Blitz June 21 Early 2022"]
[White "Bluebaum, Matthias"]
[Black "Lazavik, Denis"]
[WhiteFideId "24651516"]
[BlackFideId "13515110"]
[WhiteElo "2556"]
[BlackElo "2437"]
[Result "1-0"]
[Round "06"]
[TimeControl "180+1"]
[Date "2022.06.21"]
[WhiteClock "0:00:43"]
[BlackClock "0:00:03"]

1. d4 {[%clk 0:02:59]}  Nf6 {[%clk 0:02:54]} 2. c4 {[%clk 0:02:58]}  e6 {[%clk 0:02:46]} 3. Nc3 {[%clk 0:02:58]}  Bb4 {[%clk 0:02:44]} 4. e3 {[%clk 0:02:58]}  O-O {[%clk 0:02:43]} 5. Bd2 {[%clk 0:02:59]}  d5 {[%clk 0:02:41]} 6. Nf3 {[%clk 0:02:57]}  b6 {[%clk 0:02:30]} 7. cxd5 {[%clk 0:02:57]}  exd5 {[%clk 0:02:29]} 8. Rc1 {[%clk 0:02:58]}  Re8 {[%clk 0:02:27]} 9. Ne5 {[%clk 0:02:57]}  Bb7 {[%clk 0:02:19]} 10. Bb5 {[%clk 0:02:54]}  c6 {[%clk 0:02:18]} 11. Bd3 {[%clk 0:02:55]}  c5 {[%clk 0:02:16]} 12. a3 {[%clk 0:02:53]}  Bxc3 {[%clk 0:02:15]} 13. Bxc3 {[%clk 0:02:54]}  Nbd7 {[%clk 0:01:54]} 14. O-O {[%clk 0:02:52]}  Nf8 {[%clk 0:01:42]} 15. f4 {[%clk 0:02:36]}  cxd4 {[%clk 0:01:27]} 16. exd4 {[%clk 0:02:18]}  Ne4 {[%clk 0:01:23]} 17. Qh5 {[%clk 0:02:18]}  g6 {[%clk 0:00:52]} 18. Qh6 {[%clk 0:02:16]}  f6 {[%clk 0:00:49]} 19. Ng4 {[%clk 0:02:03]}  Bc8 {[%clk 0:00:38]} 20. f5 {[%clk 0:01:26]}  Bxf5 {[%clk 0:00:27]} 21. Ne3 {[%clk 0:01:27]}  Qd7 {[%clk 0:00:16]} 22. Nxf5 {[%clk 0:01:16]}  gxf5 {[%clk 0:00:17]} 23. Qh5 {[%clk 0:01:10]}  Ng6 {[%clk 0:00:09]} 24. Rxf5 {[%clk 0:01:10]}  Rad8 {[%clk 0:00:09]} 25. Rcf1 {[%clk 0:01:08]}  Re6 {[%clk 0:00:06]} 26. Bxe4 {[%clk 0:01:02]}  Rxe4 {[%clk 0:00:06]} 27. Rxf6 {[%clk 0:01:03]}  Rde8 {[%clk 0:00:07]} 28. Rf7 {[%clk 0:00:55]}  Qxf7 {[%clk 0:00:07]} 29. Rxf7 {[%clk 0:00:56]}  Kxf7 {[%clk 0:00:08]} 30. Qxd5+ {[%clk 0:00:56]}  Kf6 {[%clk 0:00:08]} 31. Qd7 {[%clk 0:00:49]}  R8e7 {[%clk 0:00:08]} 32. d5+ {[%clk 0:00:48]}  Kf7 {[%clk 0:00:08]} 33. Qf5+ {[%clk 0:00:47]}  Ke8 {[%clk 0:00:08]} 34. d6 {[%clk 0:00:46]}  R7e6 {[%clk 0:00:09]} 35. Qb5+ {[%clk 0:00:46]}  Kd8 {[%clk 0:00:09]} 36. Qc6 {[%clk 0:00:45]}  Ne5 {[%clk 0:00:03]} 37. Qc7+ {[%clk 0:00:42]}  Ke8 {[%clk 0:00:03]} 38. Bxe5 {[%clk 0:00:43]} 1-0


[Site "https://www.chess.com"]

[Event "Titled Tuesday Blitz June 21 Early 2022"]
[White "Borisova, Ekaterina"]
[Black "Xu, Yi"]
[WhiteFideId "34124184"]
[BlackFideId "8605564"]
[WhiteElo "2039"]
[BlackElo "2471"]
[Result "1/2-1/2"]
[Round "06"]
[TimeControl "180+1"]
[Date "2022.06.21"]
[WhiteClock "0:00:05"]
[BlackClock "0:00:15"]

1. d4 {[%clk 0:02:54]}  Nf6 {[%clk 0:02:59]} 2. c4 {[%clk 0:02:54]}  e6 {[%clk 0:03:00]} 3. g3 {[%clk 0:02:54]}  d5 {[%clk 0:02:59]} 4. Nf3 {[%clk 0:02:55]}  Bb4+ {[%clk 0:03:00]} 5. Nbd2 {[%clk 0:02:54]}  O-O {[%clk 0:02:57]} 6. Bg2 {[%clk 0:02:53]}  dxc4 {[%clk 0:02:55]} 7. Qc2 {[%clk 0:02:53]}  a5 {[%clk 0:02:50]} 8. a3 {[%clk 0:02:52]}  Bxd2+ {[%clk 0:02:46]} 9. Bxd2 {[%clk 0:02:53]}  b5 {[%clk 0:02:40]} 10. a4 {[%clk 0:02:53]}  c6 {[%clk 0:02:36]} 11. h4 {[%clk 0:02:54]}  h6 {[%clk 0:02:36]} 12. h5 {[%clk 0:02:53]}  Ra7 {[%clk 0:02:32]} 13. Rh4 {[%clk 0:02:51]}  Nd5 {[%clk 0:02:11]} 14. Ne5 {[%clk 0:02:34]}  f6 {[%clk 0:01:51]} 15. Ng6 {[%clk 0:02:29]}  Re8 {[%clk 0:01:47]} 16. Rd1 {[%clk 0:02:27]}  Na6 {[%clk 0:01:46]} 17. Qc1 {[%clk 0:02:23]}  Nab4 {[%clk 0:01:38]} 18. Kf1 {[%clk 0:02:11]}  Rf7 {[%clk 0:01:19]} 19. Be4 {[%clk 0:02:01]}  f5 {[%clk 0:01:17]} 20. Bb1 {[%clk 0:02:00]}  Bb7 {[%clk 0:01:14]} 21. Kg1 {[%clk 0:01:44]}  Ba6 {[%clk 0:01:02]} 22. Re1 {[%clk 0:01:17]}  Nf6 {[%clk 0:00:58]} 23. Ne5 {[%clk 0:01:11]}  Rc7 {[%clk 0:00:58]} 24. e4 {[%clk 0:00:49]}  c5 {[%clk 0:00:45]} 25. dxc5 {[%clk 0:00:38]}  Rxc5 {[%clk 0:00:42]} 26. exf5 {[%clk 0:00:35]}  exf5 {[%clk 0:00:42]} 27. Ng6 {[%clk 0:00:22]}  Rd5 {[%clk 0:00:20]} 28. Rxe8+ {[%clk 0:00:10]}  Nxe8 {[%clk 0:00:20]} 29. axb5 {[%clk 0:00:03]}  Bxb5 {[%clk 0:00:18]} 30. Be1 {[%clk 0:00:01]}  Rd1 {[%clk 0:00:16]} 31. Qe3 {[%clk 0:00:01]}  Rxb1 {[%clk 0:00:15]} 32. Qe6+ {[%clk 0:00:02]}  Kh7 {[%clk 0:00:13]} 33. Nf8+ {[%clk 0:00:02]}  Kh8 {[%clk 0:00:13]} 34. Ng6+ {[%clk 0:00:03]}  Kh7 {[%clk 0:00:14]} 35. Nf8+ {[%clk 0:00:04]}  Kh8 {[%clk 0:00:15]} 36. Ng6+ {[%clk 0:00:05]}  Kh7 {[%clk 0:00:15]} 1/2-1/2


[Site "https://www.chess.com"]

[Event "Titled Tuesday Blitz June 21 Early 2022"]
[White "Chigaev, Maksim"]
[Black "Agasarov, Benik"]
[WhiteFideId "4108116"]
[BlackFideId "13314823"]
[WhiteElo "2457"]
[BlackElo "2656"]
[Result "1-0"]
[Round "06"]
[TimeControl "180+1"]
[Date "2022.06.21"]
[WhiteClock "0:01:08"]
[BlackClock "0:01:56"]

1. e4 {[%clk 0:03:00]}  e5 {[%clk 0:02:57]} 2. Nf3 {[%clk 0:03:01]}  Nc6 {[%clk 0:02:57]} 3. g3 {[%clk 0:03:00]}  Nf6 {[%clk 0:02:56]} 4. d3 {[%clk 0:03:00]}  Bc5 {[%clk 0:02:55]} 5. Bg2 {[%clk 0:03:00]}  d6 {[%clk 0:02:56]} 6. O-O {[%clk 0:02:58]}  h6 {[%clk 0:02:56]} 7. c3 {[%clk 0:02:58]}  Bg4 {[%clk 0:02:54]} 8. h3 {[%clk 0:02:57]}  Bxf3 {[%clk 0:02:49]} 9. Qxf3 {[%clk 0:02:55]}  O-O {[%clk 0:02:48]} 10. b4 {[%clk 0:02:49]}  Bb6 {[%clk 0:02:48]} 11. a4 {[%clk 0:02:50]}  a6 {[%clk 0:02:46]} 12. a5 {[%clk 0:02:49]}  Ba7 {[%clk 0:02:46]} 13. Nd2 {[%clk 0:02:50]}  Nh7 {[%clk 0:02:43]} 14. Nc4 {[%clk 0:02:48]}  Qd7 {[%clk 0:02:40]} 15. Ne3 {[%clk 0:02:32]}  Ng5 {[%clk 0:02:39]} 16. Qf5 {[%clk 0:02:31]}  Qxf5 {[%clk 0:02:37]} 17. Nxf5 {[%clk 0:02:32]}  Ne6 {[%clk 0:02:36]} 18. h4 {[%clk 0:02:15]}  Rfe8 {[%clk 0:02:35]} 19. Be3 {[%clk 0:02:05]}  Ne7 {[%clk 0:02:32]} 20. Bxa7 {[%clk 0:02:04]}  Rxa7 {[%clk 0:02:33]} 21. Ne3 {[%clk 0:02:05]}  c6 {[%clk 0:02:32]} 22. f4 {[%clk 0:02:00]}  f6 {[%clk 0:02:23]} 23. Bh3 {[%clk 0:01:56]}  Nc7 {[%clk 0:02:23]} 24. Nc4 {[%clk 0:01:52]}  Nb5 {[%clk 0:02:22]} 25. Rac1 {[%clk 0:01:46]}  d5 {[%clk 0:02:21]} 26. Nb6 {[%clk 0:01:27]}  exf4 {[%clk 0:02:11]} 27. gxf4 {[%clk 0:01:20]}  dxe4 {[%clk 0:02:07]} 28. dxe4 {[%clk 0:01:21]}  Nd6 {[%clk 0:02:01]} 29. Rce1 {[%clk 0:01:12]}  Nec8 {[%clk 0:01:56]} 30. e5 {[%clk 0:01:08]} 1-0


[Site "https://www.chess.com"]

[Event "Titled Tuesday Blitz June 21 Early 2022"]
[White "Ciuffoletti, Paolo"]
[Black "Sailer, Mike"]
[WhiteFideId "807630"]
[BlackFideId "2012901"]
[WhiteElo "2143"]
[BlackElo "2109"]
[Result "1-0"]
[Round "06"]
[TimeControl "180+1"]
[Date "2022.06.21"]
[WhiteClock "0:00:47"]
[BlackClock "0:00:01"]

1. e4 {[%clk 0:03:00]}  d5 {[%clk 0:02:58]} 2. exd5 {[%clk 0:03:00]}  Qxd5 {[%clk 0:02:58]} 3. Nc3 {[%clk 0:03:00]}  Qd6 {[%clk 0:02:58]} 4. d4 {[%clk 0:03:00]}  Nf6 {[%clk 0:02:59]} 5. Nf3 {[%clk 0:03:01]}  c6 {[%clk 0:02:59]} 6. Bc4 {[%clk 0:02:59]}  Bg4 {[%clk 0:02:59]} 7. h3 {[%clk 0:02:51]}  Bh5 {[%clk 0:02:43]} 8. g4 {[%clk 0:02:50]}  Bg6 {[%clk 0:02:41]} 9. Be3 {[%clk 0:02:43]}  e6 {[%clk 0:02:40]} 10. Ne5 {[%clk 0:02:42]}  Nbd7 {[%clk 0:02:39]} 11. Bf4 {[%clk 0:02:39]}  Qb4 {[%clk 0:02:37]} 12. Bb3 {[%clk 0:02:23]}  Nxe5 {[%clk 0:02:36]} 13. dxe5 {[%clk 0:02:16]}  Qxf4 {[%clk 0:02:31]} 14. exf6 {[%clk 0:02:14]}  gxf6 {[%clk 0:02:20]} 15. Qe2 {[%clk 0:01:51]}  O-O-O {[%clk 0:02:13]} 16. Kf1 {[%clk 0:01:43]}  Rd2 {[%clk 0:02:06]} 17. Qe3 {[%clk 0:01:35]}  Qxe3 {[%clk 0:01:56]} 18. fxe3 {[%clk 0:01:35]}  Bxc2 {[%clk 0:01:56]} 19. Ke1 {[%clk 0:01:30]}  Rg2 {[%clk 0:01:36]} 20. Kf1 {[%clk 0:01:29]}  Bxb3 {[%clk 0:00:55]} 21. Kxg2 {[%clk 0:01:27]}  Bc4 {[%clk 0:00:51]} 22. b3 {[%clk 0:01:25]}  Ba6 {[%clk 0:00:50]} 23. Rad1 {[%clk 0:01:18]}  Bb4 {[%clk 0:00:48]} 24. Ne4 {[%clk 0:01:15]}  f5 {[%clk 0:00:42]} 25. gxf5 {[%clk 0:01:14]}  exf5 {[%clk 0:00:39]} 26. Nd6+ {[%clk 0:01:14]}  Bxd6 {[%clk 0:00:33]} 27. Rxd6 {[%clk 0:01:13]}  Rg8+ {[%clk 0:00:26]} 28. Kf2 {[%clk 0:01:12]}  Kc7 {[%clk 0:00:20]} 29. Rf6 {[%clk 0:01:12]}  Rd8 {[%clk 0:00:18]} 30. Rxf7+ {[%clk 0:01:07]}  Kb6 {[%clk 0:00:18]} 31. Kg3 {[%clk 0:01:02]}  Bd3 {[%clk 0:00:15]} 32. Kf4 {[%clk 0:01:00]}  Be4 {[%clk 0:00:09]} 33. Rh2 {[%clk 0:00:59]}  Rd1 {[%clk 0:00:07]} 34. Rxh7 {[%clk 0:00:58]}  Rf1+ {[%clk 0:00:06]} 35. Ke5 {[%clk 0:00:57]}  Rf3 {[%clk 0:00:04]} 36. h4 {[%clk 0:00:53]}  Rxe3 {[%clk 0:00:03]} 37. Kf6 {[%clk 0:00:50]}  Rg3 {[%clk 0:00:02]} 38. h5 {[%clk 0:00:48]}  f4 {[%clk 0:00:02]} 39. Rf2 {[%clk 0:00:47]}  Bxh7 {[%clk 0:00:01]} 40. Rxf4 {[%clk 0:00:47]} 1-0


[Site "https://www.chess.com"]

[Event "Titled Tuesday Blitz June 21 Early 2022"]
[White "Clarke, Brandon G I"]
[Black "Vusatiuk, Vladimir"]
[WhiteFideId "400319"]
[BlackFideId "14118610"]
[WhiteElo "2414"]
[BlackElo "2157"]
[Result "0-1"]
[Round "06"]
[TimeControl "180+1"]
[Date "2022.06.21"]
[WhiteClock "0:00:12"]
[BlackClock "0:00:23"]

1. e4 {[%clk 0:03:00]}  e6 {[%clk 0:03:00]} 2. d4 {[%clk 0:03:00]}  d5 {[%clk 0:03:00]} 3. Nd2 {[%clk 0:02:59]}  c5 {[%clk 0:03:00]} 4. exd5 {[%clk 0:02:58]}  Qxd5 {[%clk 0:03:00]} 5. Ngf3 {[%clk 0:02:58]}  cxd4 {[%clk 0:03:00]} 6. Bc4 {[%clk 0:02:49]}  Qd7 {[%clk 0:03:00]} 7. Nb3 {[%clk 0:02:48]}  Nc6 {[%clk 0:02:55]} 8. Nbxd4 {[%clk 0:02:48]}  Nxd4 {[%clk 0:02:55]} 9. Nxd4 {[%clk 0:02:48]}  a6 {[%clk 0:02:54]} 10. O-O {[%clk 0:02:49]}  Qc7 {[%clk 0:02:54]} 11. Bb3 {[%clk 0:02:44]}  Bd6 {[%clk 0:02:54]} 12. Re1 {[%clk 0:02:28]}  Bxh2+ {[%clk 0:02:27]} 13. Kh1 {[%clk 0:02:28]}  Be5 {[%clk 0:02:28]} 14. Be3 {[%clk 0:01:40]}  Ne7 {[%clk 0:02:20]} 15. Qh5 {[%clk 0:01:35]}  Ng6 {[%clk 0:02:12]} 16. c3 {[%clk 0:01:25]}  O-O {[%clk 0:02:01]} 17. Rad1 {[%clk 0:01:24]}  b5 {[%clk 0:01:58]} 18. Nf3 {[%clk 0:01:18]}  Bf6 {[%clk 0:01:54]} 19. Bc5 {[%clk 0:01:04]}  Re8 {[%clk 0:01:40]} 20. Bd6 {[%clk 0:01:03]}  Qc6 {[%clk 0:01:34]} 21. Bc2 {[%clk 0:01:00]}  Bb7 {[%clk 0:01:32]} 22. Be4 {[%clk 0:00:50]}  Qb6 {[%clk 0:01:30]} 23. Bc5 {[%clk 0:00:35]}  Qc7 {[%clk 0:01:28]} 24. Bd6 {[%clk 0:00:25]}  Qc8 {[%clk 0:01:28]} 25. Ng5 {[%clk 0:00:22]}  Bxg5 {[%clk 0:01:16]} 26. Qxg5 {[%clk 0:00:23]}  Bxe4 {[%clk 0:01:11]} 27. Rxe4 {[%clk 0:00:24]}  Qc6 {[%clk 0:01:11]} 28. Red4 {[%clk 0:00:25]}  h6 {[%clk 0:01:10]} 29. Qe3 {[%clk 0:00:21]}  Rad8 {[%clk 0:01:09]} 30. Bg3 {[%clk 0:00:20]}  Rxd4 {[%clk 0:01:09]} 31. Rxd4 {[%clk 0:00:21]}  Qc5 {[%clk 0:01:05]} 32. Kg1 {[%clk 0:00:15]}  e5 {[%clk 0:00:56]} 33. Rd8 {[%clk 0:00:14]}  Qc6 {[%clk 0:00:57]} 34. Qf3 {[%clk 0:00:10]}  Qe6 {[%clk 0:00:54]} 35. Qa8 {[%clk 0:00:06]}  Rxd8 {[%clk 0:00:52]} 36. Qxd8+ {[%clk 0:00:07]}  Kh7 {[%clk 0:00:52]} 37. Qd2 {[%clk 0:00:02]}  Qxa2 {[%clk 0:00:52]} 38. Qc2 {[%clk 0:00:03]}  Qd5 {[%clk 0:00:48]} 39. f3 {[%clk 0:00:03]}  Kg8 {[%clk 0:00:44]} 40. Kh2 {[%clk 0:00:03]}  h5 {[%clk 0:00:43]} 41. Qf5 {[%clk 0:00:03]}  h4 {[%clk 0:00:41]} 42. Bf2 {[%clk 0:00:04]}  Qd6 {[%clk 0:00:38]} 43. Kg1 {[%clk 0:00:01]}  Qe6 {[%clk 0:00:24]} 44. Qe4 {[%clk 0:00:01]}  f5 {[%clk 0:00:23]} 45. Qa8+ {[%clk 0:00:02]}  Kh7 {[%clk 0:00:24]} 46. Qb8 {[%clk 0:00:02]}  Nf4 {[%clk 0:00:23]} 47. Bxh4 {[%clk 0:00:02]}  Qg6 {[%clk 0:00:23]} 48. g3 {[%clk 0:00:03]}  Nd3 {[%clk 0:00:16]} 49. Qd8 {[%clk 0:00:02]}  e4 {[%clk 0:00:16]} 50. fxe4 {[%clk 0:00:02]}  fxe4 {[%clk 0:00:17]} 51. Kg2 {[%clk 0:00:02]}  e3 {[%clk 0:00:17]} 52. Qd4 {[%clk 0:00:02]}  e2 {[%clk 0:00:14]} 53. g4 {[%clk 0:00:02]}  e1=Q {[%clk 0:00:12]} 54. Bxe1 {[%clk 0:00:03]}  Nxe1+ {[%clk 0:00:13]} 55. Kf1 {[%clk 0:00:04]}  Nf3 {[%clk 0:00:13]} 56. Qf4 {[%clk 0:00:03]}  Ng5 {[%clk 0:00:11]} 57. Kf2 {[%clk 0:00:03]}  Qf6 {[%clk 0:00:11]} 58. Ke3 {[%clk 0:00:03]}  Qxf4+ {[%clk 0:00:12]} 59. Kxf4 {[%clk 0:00:04]}  Ne6+ {[%clk 0:00:12]} 60. Ke5 {[%clk 0:00:05]}  Nc5 {[%clk 0:00:13]} 61. Kd5 {[%clk 0:00:05]}  Nd3 {[%clk 0:00:14]} 62. b4 {[%clk 0:00:05]}  Nb2 {[%clk 0:00:14]} 63. Kc5 {[%clk 0:00:04]}  Nd1 {[%clk 0:00:14]} 64. c4 {[%clk 0:00:02]}  bxc4 {[%clk 0:00:14]} 65. Kxc4 {[%clk 0:00:03]}  Nb2+ {[%clk 0:00:14]} 66. Kc5 {[%clk 0:00:03]}  Nd3+ {[%clk 0:00:14]} 67. Kc4 {[%clk 0:00:04]}  Nxb4 {[%clk 0:00:15]} 68. Kxb4 {[%clk 0:00:05]}  Kg6 {[%clk 0:00:16]} 69. Ka5 {[%clk 0:00:05]}  Kg5 {[%clk 0:00:16]} 70. Kxa6 {[%clk 0:00:06]}  Kxg4 {[%clk 0:00:17]} 71. Kb5 {[%clk 0:00:07]}  Kf3 {[%clk 0:00:18]} 72. Kc4 {[%clk 0:00:08]}  g6 {[%clk 0:00:19]} 73. Kd3 {[%clk 0:00:09]}  g5 {[%clk 0:00:19]} 74. Kd2 {[%clk 0:00:10]}  Kf2 {[%clk 0:00:20]} 75. Kd3 {[%clk 0:00:10]}  g4 {[%clk 0:00:21]} 76. Ke4 {[%clk 0:00:11]}  g3 {[%clk 0:00:22]} 77. Kf4 {[%clk 0:00:12]}  g2 {[%clk 0:00:23]} 0-1


[Site "https://www.chess.com"]